[Event "Alef Super Stars Blitz 2023"]
[Site "Almamsha"]
[Date "2023.12.06"]
[Round "1.1"]
[White "Nihal Sarin"]
[Black "Salem, A.R. Saleh"]
[Result "1-0"]
[ECO "C84"]
[WhiteElo "2688"]
[BlackElo "2639"]
[Annotator "TA"]
[PlyCount "107"]
[EventDate "2023.11.27"]
[EventType "tourn"]
[EventCountry "UAE"]
[SourceTitle "playchess.com"]
[Source "ChessBase"]
[SourceQuality "1"]
[TimeControl "180+2"]

{[%evp 13,107,12,18,-1,12,12,18,22,18,16,24,0,16,0,0,0,0,0,0,0,0,0,0,1,1,11,15,12,19,8,13,12,16,4,14,-27,0,0,0,0,0,6,20,17,19,16,34,15,61,29,93,112,171,157,230,230,245,255,254,221,315,314,303,300,300,300,348,370,370,370,370,355,360,357,341,304,352,151,206,204,644,609,1417,1394,1933,1629,1332,1127,6119,5276,2931,2549,6149,5819,29982,29983]} 1. e4 {[%emt 0:00:01] Praggnanandhaa,Rameshbabu} e5 {[%emt 0:00:02]} 2. Nf3 {[%emt 0:00:02]} Nc6 {[%emt 0:00:01]} 3. Bb5 {[%emt 0:00:01][%cal Bf1b5,Bb5a4,Ba4b3][%mdl 32]} a6 {[%emt 0:00:00]} 4. Ba4 {[%emt 0:00:01]} Nf6 {[%emt 0:00:02]} 5. O-O {[%emt 0:00:02]} Be7 {[%emt 0:00:02]} 6. d3 {[%emt 0:00:02]} b5 {[%emt 0:00:01]} 7. Bb3 {[%emt 0:00:01]} d6 {[%emt 0:00:01]} 8. Bd2 {[%emt 0:00:01] C84: Closed Ruy Lopez: Unusual White 6th moves.} O-O {[%emt 0:00:02]} 9. h3 {[%emt 0:00:02]} Rb8 {[%emt 0:00:02]} 10. Re1 {[%emt 0:00:07] The position is equal.} Re8 {[%emt 0:00:12]} 11. a3 {[%emt 0:00:07]} h6 {[%emt 0:00:02]} 12. Nc3 {[%emt 0:00:02]} Bf8 {[%emt 0:00:05]} 13. Nd5 {[%emt 0:00:23]} Nxd5 {[%emt 0:00:02]} 14. Bxd5 {[%emt 0:00:01]} Ne7 {[%emt 0:00:01]} 15. Bb3 {[%emt 0:00:04]} c5 {[%emt 0:00:01]} 16. a4 {[%emt 0:00:08] [#]} Qc7 $146 {[%emt 0:00:06]} ({Predecessor:} 16... Bb7 17. Nh4 Qc7 18. axb5 axb5 19. Qg4 Qc8 20. Qg3 c4 21. dxc4 bxc4 22. Ba4 Bc6 23. Bxh6 Rxb2 {1-0 Praggnanandhaa,R (2690)-Keymer,V (2690) Duesseldorf WR Masters 2023 (3)}) 17. axb5 {[%emt 0:00:02]} axb5 {[%emt 0:00:02]} 18. c3 {[%emt 0:00:18]} c4 {[%emt 0:00:08]} 19. Bc2 {[%emt 0:00:01]} Ng6 {[%emt 0:00:28]} 20. d4 {[%emt 0:00:03]} Bd7 {[%emt 0:00:08]} 21. Be3 {[%emt 0:00:05]} Ra8 {[%emt 0:00:18]} 22. Qd2 {[%emt 0:00:04]} Bc6 {[%emt 0:00:04]} 23. d5 {[%emt 0:00:07]} Bd7 {[%emt 0:00:02]} 24. b4 {[%emt 0:00:02]} cxb3 {[%emt 0:00:10]} 25. Bxb3 {[%emt 0:00:01]} Rec8 {[%emt 0:00:01]} 26. Rxa8 {[%emt 0:00:05]} Rxa8 {[%emt 0:00:00]} 27. Rc1 {[%emt 0:00:02]} Be7 {[%emt 0:00:25]} 28. c4 {[%emt 0:00:02]} bxc4 {[%emt 0:00:01]} 29. Bxc4 {[%emt 0:00:02][%cal Oc4b5]} Qb7 {[%emt 0:00:09] Repels Bb5} 30. Bf1 {[%emt 0:00:06]} Bd8 {[%emt 0:00:08]} (30... f5 $11 31. exf5 Bxf5) 31. Qd1 {[%emt 0:00:17]} Qb4 {[%emt 0:00:26]} (31... f5 $11 {keeps the balance.}) 32. Nd2 $1 $16 {[%emt 0:00:05] Black is now going downhill.} Bg5 {[%emt 0:00:14] [#]} (32... Be7 $16 {was necessary.}) 33. Rb1 $1 $18 {[%emt 0:00:02]} Qa4 {[%emt 0:00:08]} (33... Qa5 $16) 34. Qxa4 {[%emt 0:00:32]} Rxa4 {[%emt 0:00:02]} 35. Bxg5 {[%emt 0:00:02]} hxg5 {[%emt 0:00:01]} 36. Nc4 {[%emt 0:00:02]} Kf8 {[%emt 0:00:22]} (36... Ra7 $142 37. Rb8+ Kh7 38. Nxd6 f6) 37. Rb7 {[%emt 0:00:02]} ({Don't play} 37. Nxd6 $6 Ra7 38. Nc4 f6 39. Rb8+ Ke7 $18) 37... Be8 {[%emt 0:00:12]} 38. Nxd6 {[%emt 0:00:02]} Ra8 {[%emt 0:00:01] Against Rb8} 39. g3 {[%emt 0:00:11]} Ne7 {[%emt 0:00:02]} 40. Nxe8 {[%emt 0:00:22]} Rxe8 {[%emt 0:00:02][%mdl 4096] Endgame KRB-KRN} 41. d6 {[%emt 0:00:01][%cal Of1b5] Strongly threatening Bb5!} Ng8 {[%emt 0:00:03]} 42. Bc4 {[%emt 0:00:04][%csl Gc4][%cal Rb7f7]} Nh6 {[%emt 0:00:04] [#]} 43. Rd7 {[%emt 0:00:22] Wards off Rd8} Rc8 {[%emt 0:00:01]} 44. Bd5 {[%emt 0:00:02] Threatens to win with g4.} g6 {[%emt 0:00:01]} 45. Re7 {[%emt 0:00:13]} (45. g4 $18 {[%cal Oh3h4] is more deadly. aiming for h4!} Ke8 46. Rb7) 45... Rd8 {[%emt 0:00:03]} (45... Re8 $16) 46. Rxe5 {[%emt 0:00:02]} f6 $2 {[%emt 0:00:03]} (46... Kg7 47. Bb3 (47. Rxg5 f6 $15) 47... Rxd6 48. Rxg5 Rd4) 47. Re6 {[%emt 0:00:01]} Ng8 {[%emt 0:00:01]} 48. f4 {[%emt 0:00:04]} gxf4 {[%emt 0:00:01]} 49. gxf4 {[%emt 0:00:01]} Kg7 {[%emt 0:00:01]} 50. Kf2 {[%emt 0:00:02]} Rb8 {[%emt 0:00:04]} 51. Ke3 {[%emt 0:00:03] Intending d7 and mate.} Rd8 {[%emt 0:00:03] Against d7} 52. e5 {[%emt 0:00:01]} fxe5 {[%emt 0:00:01]} 53. fxe5 {[%emt 0:00:01] White wants to mate with Be4.} Rf8 {[%emt 0:00:03]} 54. Be4 {[%emt 0:00:02] Weighted Error Value: White=0.11 (very precise) /Black=0.45} 1-0

[Event "Alef Super Stars Blitz 2023"]
[Site "Almamsha"]
[Date "2023.12.06"]
[Round "1.2"]
[White "Yu, Yangyi"]
[Black "Sjugirov, Sanan"]
[Result "1-0"]
[ECO "B30"]
[WhiteElo "2714"]
[BlackElo "2703"]
[Annotator "TA"]
[PlyCount "105"]
[EventDate "2023.11.27"]
[EventType "tourn"]
[EventCountry "UAE"]
[SourceTitle "playchess.com"]
[Source "ChessBase"]
[SourceQuality "1"]
[TimeControl "180+2"]

{[%evp 11,105,23,23,22,15,7,31,0,0,0,0,-4,0,-10,7,0,0,-14,-11,-14,-12,-31,-19,-31,-16,-25,-23,-24,-18,-26,27,-52,-48,-37,-52,-53,-44,-39,-36,-36,-39,-45,-36,-42,-25,-42,0,-54,-44,-54,-50,-41,-51,-54,-54,-56,0,-45,-5,-22,0,0,-2,-20,0,0,56,0,0,0,0,0,112,103,267,185,270,261,233,233,233,233,220,214,5381,4534,5406,5289,29984,29985,29987,29981,29982,29983,29995,29984]} 1. e4 {[%emt 0:00:02]} c5 {[%emt 0:00:00]} 2. Nf3 {[%emt 0:00:01]} Nc6 {[%emt 0:00:01]} 3. Nc3 {[%emt 0:00:02]} e5 {[%emt 0:00:04]} 4. Bc4 {[%emt 0:00:01]} d6 {[%emt 0:00:01]} 5. d3 {[%emt 0:00:01]} Be7 {[%emt 0:00:01]} 6. O-O {[%emt 0:00:08]} Nf6 {[%emt 0:00:01]} 7. Nd5 {[%emt 0:00:04] B30: Sicilian: 2...Nc6 3 Bb5, lines without ...g6.} O-O {[%emt 0:00:10]} 8. a4 {[%emt 0:00:03]} Be6 {[%emt 0:00:05]} 9. Nxf6+ {[%emt 0:00:04] White is slightly better.} Bxf6 {[%emt 0:00:01] [#]} 10. Bxe6 $146 {[%emt 0:00:02]} ({Predecessor:} 10. c3 a6 11. Be3 Rc8 12. Bxe6 fxe6 13. b4 cxb4 14. cxb4 Nd4 15. Nxd4 exd4 16. Bd2 {1-0 Kwiatkowski,J (1770)-Knapp,Y (1675) SUI-ch U16 Biel 2022 (7)}) 10... fxe6 {[%emt 0:00:00]} 11. Be3 {[%emt 0:00:04]} b6 {[%emt 0:00:08]} 12. h3 {[%emt 0:00:17]} h6 {[%emt 0:00:03]} 13. c3 {[%emt 0:00:04][%cal Ob2b4]} d5 {[%emt 0:00:01]} 14. Qc2 {[%emt 0:00:07]} Qd6 {[%emt 0:00:03]} 15. Rad1 {[%emt 0:00:03]} Rad8 {[%emt 0:00:01]} 16. Rfe1 {[%emt 0:00:02]} Qd7 {[%emt 0:00:18]} 17. Nh2 {[%emt 0:00:02]} Qe7 {[%emt 0:00:09]} 18. Nf3 {[%emt 0:00:23]} Qf7 {[%emt 0:00:02]} 19. Qe2 {[%emt 0:00:05]} Qg6 {[%emt 0:00:04]} 20. Bc1 {[%emt 0:00:04][%cal Ob2b4]} Rd7 {[%emt 0:00:09]} (20... d4 $142) 21. Nh2 {[%emt 0:00:08]} (21. b4 $11) 21... Bh4 $15 {[%emt 0:00:16]} 22. Rf1 {[%emt 0:00:20]} Rdf7 {[%emt 0:00:03]} 23. g3 {[%emt 0:00:09]} h5 {[%emt 0:00:10] Prevents Qg4} 24. Kh1 {[%emt 0:00:09]} Bg5 {[%emt 0:00:04]} 25. Bxg5 {[%emt 0:00:09]} Qxg5 {[%emt 0:00:01]} 26. h4 {[%emt 0:00:03]} Qg6 {[%emt 0:00:01]} 27. Kg2 {[%emt 0:00:01]} Rf4 {[%emt 0:00:08]} 28. Kh1 {[%emt 0:00:04]} R4f7 {[%emt 0:00:02]} 29. Kg2 $1 {[%emt 0:00:01][%cal Oa4a5]} Rf6 {[%emt 0:00:11]} 30. Rde1 {[%emt 0:00:04]} Qf7 {[%emt 0:00:07]} 31. Qd2 {[%emt 0:00:05]} d4 {[%emt 0:00:15]} 32. Qe2 {[%emt 0:00:26]} Qg6 {[%emt 0:00:08]} 33. Qd2 {[%emt 0:00:06]} a6 {[%emt 0:00:11]} ({Better is} 33... Kh7 $15) 34. Qe2 {[%emt 0:00:07]} Qf7 {[%emt 0:00:06]} 35. Qd2 {[%emt 0:00:02]} b5 {[%emt 0:00:12]} 36. axb5 {[%emt 0:00:01]} axb5 {[%emt 0:00:00]} 37. Rc1 {[%emt 0:00:03]} dxc3 {[%emt 0:00:06]} (37... Na5 $5 {[%cal Ra5b3]} 38. Qc2 Nc6 $11) 38. bxc3 {[%emt 0:00:01]} c4 {[%emt 0:00:33]} (38... b4 $11) 39. dxc4 {[%emt 0:00:03]} (39. Rb1 $14) 39... Na5 $1 $11 {[%emt 0:00:01] White must now prevent ...Nb3.} 40. Rb1 {[%emt 0:00:10] Prevents Nb3} Nxc4 {[%emt 0:00:01]} (40... bxc4 41. Rb2 $14) 41. Qe2 {[%emt 0:00:01]} Rd8 {[%emt 0:00:11] [#]} (41... Qe8 $11 {remains equal.}) 42. Nf3 $1 $36 {[%emt 0:00:12][%mdl 2048] White has strong initiative.} (42. Rxb5 Rd2 43. Qe1 (43. Qxc4 Rfxf2+ 44. Kg1 Rg2+ 45. Kh1 Rxh2+ 46. Kg1 Rdg2#) 43... Qa7 $17) 42... Qg6 $2 {[%emt 0:00:12] This costs Black the game.} (42... Rxf3 $16 43. Qxf3 Qxf3+ 44. Kxf3 Nd2+ 45. Ke2 Nxf1) 43. Rbd1 {[%emt 0:00:08]} Rxd1 {[%emt 0:00:04]} (43... Rdf8 {was called for.} 44. Ng5 Qe8) 44. Rxd1 $18 {[%emt 0:00:01] Strongly threatening Ng5.} Qg4 {[%emt 0:00:01] [#] Inhibits Ng5.} 45. Rd8+ {[%emt 0:00:03]} Rf8 {[%emt 0:00:02]} 46. Rxf8+ {[%emt 0:00:04]} Kxf8 {[%emt 0:00:01][%mdl 4096] Endgame KQN-KQN} 47. Qd3 {[%emt 0:00:01]} Ke7 {[%emt 0:00:01] Against Qd8+} (47... Qg6 48. Nxe5 {[%mdl 64] Decoy} Nxe5 49. Qd6+ (49. Qxb5 $2 {loses.} Qxe4+ 50. Kg1 Qe1+ 51. Kg2 Qxc3 $19) 49... Ke8 50. Qxe5 Kf8 51. Qd6+ (51. Qxb5 Qxe4+ 52. Kf1 Qh1+ 53. Ke2 Qa1 $16) 51... Kg8 52. Qb8+ Kf7 53. Qc7+ (53. Qxb5 Qxe4+ 54. Kh2 Qf3 $16) 53... Kg8) 48. Ng5 {[%emt 0:00:02]} Nb2 {[%emt 0:00:04]} 49. Qxb5 {[%emt 0:00:04]} Nd1 {[%emt 0:00:02]} 50. Qb7+ {[%emt 0:00:03][%mdl 64] Skewer. White mates.} ({Weaker is} 50. Qxe5 Ne3+ 51. Kh2 (51. fxe3 Qe2+ 52. Kg1 Qe1+ 53. Kh2 Qf2+ 54. Kh3 Qf1+ 55. Kh2 Qf2+ 56. Kh3 Qf1+ 57. Kh2 Qf2+ $11) 51... Qxh4+ 52. Kg1 Qh2+ 53. Kxh2 Ng4+ 54. Kh3 Nxe5 $16) 50... Kd6 {[%emt 0:00:02]} 51. Qa6+ {[%emt 0:00:05]} Ke7 {[%emt 0:00:01]} 52. Qa7+ {[%emt 0:00:04]} Kd6 {[%emt 0:00:01]} 53. f3 {[%emt 0:00:09] Weighted Error Value: White=0.11 (very precise) /Black=0.34} 1-0

[Event "Alef Super Stars Blitz 2023"]
[Site "Almamsha"]
[Date "2023.12.06"]
[Round "2.1"]
[White "Salem, A.R. Saleh"]
[Black "Sjugirov, Sanan"]
[Result "1-0"]
[ECO "D38"]
[WhiteElo "2639"]
[BlackElo "2703"]
[Annotator "TA"]
[PlyCount "187"]
[EventDate "2023.11.27"]
[EventType "tourn"]
[EventCountry "UAE"]
[SourceTitle "playchess.com"]
[Source "ChessBase"]
[SourceQuality "1"]
[TimeControl "180+2"]

{[%evp 12,187,9,8,16,9,24,20,21,12,10,22,20,0,0,-27,-13,-11,-10,-13,-10,-19,0,0,0,-19,-19,0,4,0,3,0,41,14,18,20,13,15,18,0,0,8,31,0,20,0,28,14,81,0,30,8,32,0,0,0,0,0,0,0,0,0,128,43,760,762,690,220,737,729,650,-23,-16,-18,-18,-282,-1,-8,-8,-8,63,68,66,32,32,0,153,153,153,153,153,0,161,165,159,84,83,97,433,418,363,83,83,83,172,160,205,73,73,-412,189,189,277,247,304,108,328,310,383,108,189,167,167,107,108,108,183,107,107,107,182,107,108,108,160,0,189,189,254,108,183,108,276,91,97,91,178,91,91,91,291,258,243,229,519,518,512,504,500,479,522,25,1445,1415,1411,1414,1410,1400,1744,1460,2835,2559,29972,29970,5716,5354,29982,29983]} 1. d4 {[%emt 0:00:01]} Nf6 {[%emt 0:00:01]} 2. c4 {[%emt 0:00:01]} e6 {[%emt 0:00:01]} 3. Nf3 {[%emt 0:00:01]} d5 {[%emt 0:00:00]} 4. Nc3 {[%emt 0:00:00]} Bb4 {[%emt 0:00:01]} 5. cxd5 {[%emt 0:00:05]} exd5 {[%emt 0:00:02]} 6. Bg5 {[%emt 0:00:01]} h6 {[%emt 0:00:01]} 7. Bh4 {[%emt 0:00:01]} O-O {[%emt 0:00:01] D38: Queen's Gambit Declined: Ragozin Defence (4 Nf3 Bb4).} 8. e3 {[%emt 0:00:02]} Bf5 {[%emt 0:00:02]} 9. Qb3 {[%emt 0:00:02]} Bxc3+ {[%emt 0:00:16] The position is equal.} 10. bxc3 {[%emt 0:00:03][%cal Oh4f6]} Nbd7 {[%emt 0:00:01]} 11. Be2 {[%emt 0:00:02][%cal Oe1g1]} c5 {[%emt 0:00:09]} 12. O-O {[%emt 0:00:04]} c4 {[%emt 0:00:09]} 13. Qa3 $5 {[%emt 0:00:10][%mdl 4] [#] An interesting side line.} b5 $146 {[%emt 0:00:09]} ({Predecessor:} 13... Re8 14. Nd2 b5 15. Bf3 Qb6 16. Qb2 a5 17. a3 Rab8 18. Bg3 Rb7 19. Rfe1 Bd3 {1-0 Parligras,M (2595)-Bluebaum,M (2646) GER-ROM online blitz 2020 (2)}) 14. Ne5 {[%emt 0:00:40]} Qb6 {[%emt 0:00:02] Inhibits Nc6.} 15. Nxd7 {[%emt 0:00:07]} Nxd7 {[%emt 0:00:00]} 16. Bf3 {[%emt 0:00:02]} Qc6 {[%emt 0:02:39]} (16... g5 $5 {[%cal Rg5h4]} 17. Bg3 Nf6 $11) 17. Qa5 {[%emt 0:00:09]} Nb6 {[%emt 0:00:00]} 18. Rfe1 {[%emt 0:00:07]} Rfe8 {[%emt 0:00:00]} 19. a4 {[%emt 0:00:17]} bxa4 {[%emt 0:00:00]} 20. Bd1 {[%emt 0:00:03]} Qg6 {[%emt 0:00:00]} 21. Bg3 {[%emt 0:00:09]} Be4 {[%emt 0:00:00]} 22. Bxa4 {[%emt 0:00:13]} Nxa4 {[%emt 0:00:00]} 23. Rxa4 {[%emt 0:00:10]} h5 {[%emt 0:00:00][%cal Oh5h4]} 24. h4 {[%emt 0:00:03]} Reb8 {[%emt 0:00:00]} 25. Qc7 {[%emt 0:00:17]} (25. Ra2 $5 {[%cal Rg1h2]}) 25... Rb3 {[%emt 0:00:00]} 26. Rc1 {[%emt 0:00:17]} a6 {[%emt 0:00:00]} 27. Ra2 {[%emt 0:00:09]} Kh7 {[%emt 0:00:00]} 28. Kh2 {[%emt 0:00:02]} (28. f3 $5 {[%cal Rf3e4]} Bf5 29. Ra5 $14) 28... Rb5 {[%emt 0:00:00]} 29. Rca1 {[%emt 0:00:09]} (29. Qd7 $5 {[%cal Rd7b5]}) 29... Rb3 {[%emt 0:00:00]} (29... Qe6 $11 {keeps the balance.}) 30. Rc1 {[%emt 0:00:07]} (30. f3 $16 Bf5 31. Ra5) 30... Rb5 $11 {[%emt 0:00:00]} 31. Qd7 {[%emt 0:00:10]} Rab8 {[%emt 0:00:16]} 32. Rca1 {[%emt 0:00:14][%cal Oa2a6]} (32. Qd6 $5 {[%cal Rd6g6]} R8b6 33. Qxg6+ Bxg6 34. Rca1 $11) 32... R8b6 {[%emt 0:00:03]} 33. Qc8 {[%emt 0:00:04][%cal Ra2a6]} Bf5 {[%emt 0:00:03]} 34. Qd8 {[%emt 0:00:01]} Be4 {[%emt 0:00:05]} 35. Qc8 {[%emt 0:00:01][%cal Ra2a6]} Bf5 {[%emt 0:00:07]} 36. Qa8 {[%emt 0:00:00][%cal Ra2a6]} Rb3 {[%emt 0:00:03]} (36... Be4 $11) 37. Rxa6 {[%emt 0:00:08]} ({Better is} 37. Qxd5 $16 {Ra5 would be deadly.} Rxc3 38. Ra5) 37... Rxc3 $2 {[%emt 0:00:01][%mdl 8192]} (37... Be4 $14) 38. Rxb6 $18 {[%emt 0:00:01]} Qxb6 {[%emt 0:00:01]} 39. Qxd5 $2 {[%emt 0:00:02]} (39. Ra6 Qb5 40. Be5 (40. Ra5 Qb1 $11)) 39... Bg6 $2 {[%emt 0:00:01]} (39... Qe6 40. Qc5 Qc8) 40. Ra8 {[%emt 0:00:02] Black is weak on the dark squares} Rc1 {[%emt 0:00:02]} 41. Qd8 $2 {[%emt 0:00:03]} (41. Be5 $18) 41... Qxd8 $11 {[%emt 0:00:01]} 42. Rxd8 {[%emt 0:00:01][%mdl 4096] Endgame KRB-KRB} c3 {[%emt 0:00:01][%cal Bc4c3,Bc3c2][%mdl 32] White must now prevent ...c2.} 43. f3 $2 {[%emt 0:00:03][%mdl 8192]} (43. Bf4 $11) 43... Bd3 $2 {[%emt 0:00:01]} (43... c2 $19 {[%cal Oc1h1] And now ...Rh1+! would win.} 44. e4 (44. Rc8 $2 Rd1 $19) 44... Rh1+ {[%mdl 64] Decoy, Clearance, Promotion} 45. Kxh1 c1=Q+ 46. Kh2 Qd2) 44. e4 {[%emt 0:00:02]} c2 {[%emt 0:00:01][%cal Oc1h1] ...Rh1+! is the strong threat.} 45. Bf4 {[%emt 0:00:01]} Ra1 {[%emt 0:00:03]} (45... Rf1 $1 $11) 46. Rc8 $14 {[%emt 0:00:01]} Ra4 {[%emt 0:00:03]} 47. d5 {[%emt 0:00:04]} (47. Be3 $5 {[%cal Rc8c3]}) 47... f5 {[%emt 0:00:01]} 48. d6 {[%emt 0:00:01]} (48. Be3 $5 {[%cal Rd5d6]} fxe4 49. d6 $14) 48... Bb5 {[%emt 0:00:07] Prevents d7} (48... Rd4 $11) 49. Rxc2 $16 {[%emt 0:00:04] Threatens to win with Rc5.} fxe4 {[%emt 0:00:01]} 50. fxe4 {[%emt 0:00:01]} Rxe4 {[%emt 0:00:00]} 51. Rc5 $2 {[%emt 0:00:03]} (51. Kg3 $1 $16) 51... Be8 $2 {[%emt 0:00:02]} (51... Rxf4 $11 52. Rxh5+ (52. Rxb5 Rxh4+ 53. Kg3 Rd4 $11) 52... Kg6 53. Rg5+ (53. Rxb5 Rxh4+ 54. Kg3 Rd4 $11) 53... Kf6 54. Rxb5 Rxh4+ 55. Kg3 Rd4) 52. Kg3 $18 {[%emt 0:00:02]} Rd4 {[%emt 0:00:02]} 53. Rc7 {[%emt 0:00:01]} (53. Kf3 $142) 53... Rd3+ $16 {[%emt 0:00:01]} 54. Kf2 {[%emt 0:00:01] White is more active.} Rd5 $2 {[%emt 0:00:04][%mdl 8192] Dodges Rc5} (54... Kg6 $16 {is more resistant.}) 55. Ke3 {[%emt 0:00:01]} Kg6 {[%emt 0:00:05]} 56. Re7 $2 {[%emt 0:00:01]} (56. Ke4 $18 Rd1 57. Ke5) 56... Bc6 {[%emt 0:00:02]} 57. g3 {[%emt 0:00:03] aiming for Rc7.} Rd1 {[%emt 0:00:02]} (57... Bb5 $16) 58. Rc7 $18 {[%emt 0:00:02]} Bb5 {[%emt 0:00:01]} 59. Be5 {[%emt 0:00:02]} (59. Ke4 $18) 59... Kf5 $16 {[%emt 0:00:01]} 60. Rc5 $2 {[%emt 0:00:02][%mdl 8192]} (60. Bxg7 $16 {and life is bright. Strongly threatening Rc5+.} Rd3+ 61. Kf2) 60... Bd7 $4 {[%emt 0:00:02][%mdl 8192]} (60... Re1+ $19 {avoids the disaster.} 61. Kd4 Re4+ {[%mdl 64] Deflection} 62. Kc3 Rxe5) 61. Bxg7+ $18 {[%emt 0:00:02]} Kg6 {[%emt 0:00:02]} (61... Ke6 {was worth a try.} 62. Rxh5 Kxd6) 62. Be5 {[%emt 0:00:02]} Bf5 {[%emt 0:00:02]} 63. Bf4 $2 {[%emt 0:00:01]} (63. Rc7 $18 {and White stays clearly on top.}) 63... Bg4 $2 {[%emt 0:00:02]} (63... Kf6 $16 64. Kf3 Ke6 65. Re5+ Kf6) 64. Rg5+ {[%emt 0:00:03]} Kf6 {[%emt 0:00:01]} 65. Ra5 $2 {[%emt 0:00:02]} (65. Ke4 $18) 65... Ke6 {[%emt 0:00:02]} (65... Bf5 $16 66. Rc5 Ke6 67. Re5+ Kf6) 66. Ra7 {[%emt 0:00:01]} Kf6 {[%emt 0:00:02]} 67. Kf2 {[%emt 0:00:02]} (67. Ra8 $18) 67... Ke6 {[%emt 0:00:02]} 68. Re7+ {[%emt 0:00:02]} Kf6 {[%emt 0:00:01]} (68... Kd5 $16) 69. Re8 {[%emt 0:00:00]} (69. Be5+ $1 $18 Kf5 70. Ke3) 69... Kf7 $16 {[%emt 0:00:02]} 70. Ra8 {[%emt 0:00:04]} Kf6 {[%emt 0:00:00]} (70... Rd3 $16 71. Ra5 Ke6) 71. Ra2 {[%emt 0:00:02]} (71. Ke3 $1 $18) 71... Ke6 {[%emt 0:00:02]} 72. Ke3 {[%emt 0:00:02]} Kf6 {[%emt 0:00:02]} (72... Bf5 $142 73. Ra7 Kf6) 73. Ra5 {[%emt 0:00:01]} Ke6 $1 {[%emt 0:00:01]} 74. Re5+ {[%emt 0:00:02]} Kf6 {[%emt 0:00:01]} (74... Kxd6 $142 75. Rxh5+ Ke6 76. Re5+ Kf6) 75. Rb5 {[%emt 0:00:02]} (75. Rg5 $18) 75... Ke6 {[%emt 0:00:01] [#]} (75... Bf5 $16 76. Ra5 Ke6) 76. Ra5 {[%emt 0:00:03]} ({White should play} 76. Ke4 $1 $18) 76... Kf6 $2 {[%emt 0:00:01]} (76... Bf5 $16 {keeps fighting.} 77. Re5+ Kf6) 77. Be5+ $2 {[%emt 0:00:03]} (77. Ke4 $18 {is more deadly.}) 77... Ke6 {[%emt 0:00:01]} 78. Kf4 {[%emt 0:00:01]} Rf1+ {[%emt 0:00:01]} (78... Re1 $16 {was called for.}) 79. Kg5 {[%emt 0:00:05]} (79. Ke4 $18) 79... Rf5+ {[%emt 0:00:02]} 80. Kg6 {[%emt 0:00:01]} Rf8 $2 {[%emt 0:00:11] [#]} (80... Rxe5 $2 81. d7 Rxa5 82. d8=Q $16 (82. d8=B {gets mated.} Ra8 83. Bf6 Bf5+ 84. Kg5 Ra4 85. Bd8 Rg4+ 86. Kxh5 Rg6 87. g4 Be4 88. Bb6 Kf7 89. Bd8 Bf3 90. Bg5 Be2 91. Bh6 Bxg4#)) (80... Bf3 $16) 81. Bf4 $1 $18 {[%emt 0:00:03]} Rg8+ {[%emt 0:00:01]} 82. Kh7 {[%emt 0:00:01]} Rd8 $2 {[%emt 0:00:03]} (82... Re8 {is a better defense.} 83. Ra7 Bf5+ 84. Kg7 Bg4) 83. Kg7 {[%emt 0:00:00]} Rd7+ {[%emt 0:00:03]} 84. Kg6 {[%emt 0:00:01]} Rd8 {[%emt 0:00:02]} 85. Re5+ {[%emt 0:00:01]} Kd7 {[%emt 0:00:01]} 86. Rxh5 $2 {[%emt 0:00:07]} (86. Re7+ $18 Kc6 87. Rc7+ Kd5 88. Ra7) 86... Rg8+ $2 {[%emt 0:00:03][%mdl 8192]} (86... Bxh5+ $11 87. Kxh5 Rg8) 87. Kf7 {[%emt 0:00:03]} Be6+ {[%emt 0:00:03]} 88. Kf6 {[%emt 0:00:00] White wants to mate with Rh7+.} Rf8+ {[%emt 0:00:02]} 89. Ke5 {[%emt 0:00:01]} Bg8 {[%emt 0:00:03]} 90. Rg5 {[%emt 0:00:02]} Re8+ {[%emt 0:00:01]} 91. Kd4 {[%emt 0:00:01]} Be6 {[%emt 0:00:02]} 92. Rg7+ {[%emt 0:00:01]} Kc6 {[%emt 0:00:01]} 93. Rc7+ {[%emt 0:00:01]} Kb6 {[%emt 0:00:01]} 94. Re7 {[%emt 0:00:01] Weighted Error Value: White=0.57/Black=0.46} 1-0